Cogmind - Beta 13 *** ADVENTURER MODE // 2024.05.23 @ 09:23:02 Player: Blade Result: Self-destructed Performance ------------- Evolutions (3) 1500 Regions Visited (4) 800 Robots Destroyed (50) 250 Value Destroyed (943) 943 Prototype IDs (3) 60 Alien Tech Used (0) 0 Bonus (16) 16 TOTAL SCORE: 3569 Bonus ------- High Alert Combat Kills 16 Cogmind --------- Core Integrity 513/700 Matter 3/300 Energy 100/100 System Corruption 1% Temperature Cool (0) Movement Core (100) Ox1 Location -7/Factory Parts ------- > --- POWER (1) -------- (None) > --- PROPULSION (2) --- (None) > --- UTILITY (8) ------ Small Storage Unit Signal Interpreter Improved Melee Analysis Suite Hacking Suite Hacking Suite > --- WEAPON (2) ------- (None) > --- INVENTORY (8) ---- Light Ion Engine Light Nuclear Core Flight Unit Flight Unit Flight Unit VTOL Module Improved Flight Unit Spear Peak State ------------ > --- POWER ------------ Light Ion Engine > --- PROPULSION ------- Improved Flight Unit > --- UTILITY ---------- Small Storage Unit Advanced Weight Redist. System Signal Interpreter Improved Melee Analysis Suite Hacking Suite Hacking Suite > --- WEAPON ----------- Mini Grenade Launcher Spear > --- INVENTORY -------- Flight Unit Flight Unit Flight Unit [Rating: 25] Favorites ----------- Power Light Ion Engine Engine Light Ion Engine Propulsion Aluminum Leg Leg Aluminum Leg Flight Unit Improved Flight Unit Utility Small Storage Unit Device Sensor Array Storage Small Storage Unit Processor Signal Interpreter Hackware Hacking Suite Weapon Assault Rifle Ballistic Gun Assault Rifle Launcher Mini Grenade Launcher Impact Weapon Great Maul Piercing Weapon Spear Build | -11 -10 -9 -8 -7 ------- Run | Yrd Mat Mat Mat Fac Slots Evolved 6 | . . 2 2 2 Power . | . . . . . Propulsion . | . . . . . Utility 6 | . . 2 2 2 Weapon . | . . . . . Parts Attached 35 | . 6 14 3 12 Power 6 | . 1 4 . 1 Engine 6 | . 1 4 . 1 Core . | . . . . . Reactor . | . . . . . Propulsion 13 | . 3 5 . 5 Treads . | . . . . . Leg 3 | . 3 . . . Wheel . | . . . . . Hover . | . . . . . Flight 10 | . . 5 . 5 Utility 11 | . 2 3 3 3 Device 6 | . 2 2 1 1 Storage . | . . . . . Processor 2 | . . 1 . 1 Hackware 3 | . . . 2 1 Protection . | . . . . . Artifact . | . . . . . Weapon 5 | . . 2 . 3 Energy Gun . | . . . . . Energy Cannon . | . . . . . Ballistic Gun 1 | . . 1 . . Ballistic Cannon . | . . . . . Launcher 2 | . . 1 . 1 Special Weapon . | . . . . . Impact Weapon 1 | . . . . 1 Slashing Weapon . | . . . . . Piercing Weapon 1 | . . . . 1 Special Melee Weapon . | . . . . . Unidentified Prototypes 3 | . . 3 . . Parts Lost 10 | . 1 2 5 2 Power 2 | . . 1 1 . Propulsion 3 | . 1 1 1 . Utility 3 | . . . 2 1 Weapon 2 | . . . 1 1 Highest Loss Streak 4 | . 1 1 4 2 To Critical Strikes . | . . . . . Average Slot Usage (%) 89 | . 96 96 87 57 Engine 11 | . 14 10 8 3 Leg 17 | . 27 4 . . Flight 5 | . . 17 17 4 Device 11 | . 11 19 12 3 Storage 11 | . 14 11 9 7 Processor 4 | . . 11 9 13 Hackware 3 | . . . 17 14 Ballistic Gun 19 | . 28 13 5 . Launcher 2 | . . 8 8 3 Naked Turns . | . . . . . Heaviest Build 13 | 12 13 13 11 13 Greatest Support 20 | 20 20 20 18 14 Greatest Overweight (x) 2 | . 1 . . 2 Average Overweight (x) . | . . . . . Largest Inventory Capacity 8 | 8 8 8 8 8 Average Capacity 8 | 8 8 8 8 8 Most Carried 8 | 6 8 8 7 8 Average Carried 7 | 6 7 7 6 5 Final Capacity 8 | 8 8 8 8 8 Final Carried 8 | 6 8 8 7 8 Class Distribution -------------------- 74% | Mutant 20% | Hacker-Mutant 4% | Scavenger-Mutant Dominant Class ---------------- Mutant | -10/Materials Mutant | -9/Materials Hacker-Mutant | -8/Materials Hacker-Mutant | -7/Factory Resources | -11 -10 -9 -8 -7 ----------- Run | Yrd Mat Mat Mat Fac Matter Collected 767 | 200 293 134 9 131 Remotely . | . . . . . Salvage Created 1046 | . 553 395 10 88 Parts 94 | . 48 32 4 10 Haulers Intercepted 6 | . 2 4 . . Recyclers Shooed . | . . . . . Parts Field Recycled . | . . . . . Retrieved Matter . | . . . . . Parts Self-Destructed . | . . . . . Prevented . | . . . . . Kills | -11 -10 -9 -8 -7 ------- Run | Yrd Mat Mat Mat Fac Combat Hostiles Destroyed 36 | . 11 18 3 4 Guns 13 | . 11 2 . . AOE 23 | . . 16 3 4 Classes Destroyed 8 | . 5 1 . 2 Worker 1 | . . . . 1 Builder 1 | . . . . 1 Tunneler 1 | . . 1 . . Hauler 6 | . 2 4 . . Recycler 1 | . 1 . . . Watcher 4 | . 2 1 . 1 Swarmer 24 | . 3 14 3 4 Grunt 12 | . 8 4 . . Best Kill Streak 12 | . 6 12 3 7 Combat Bots Only 6 | . 5 6 3 4 Max Kills in Single Turn 3 | . 1 3 2 2 Gunslinging . | . . . . . Exploded 3 | . . 3 2 1 Melee . | . . . . . Uniques/NPCs Destroyed . | . . . . . Combat | -11 -10 -9 -8 -7 -------- Run | Yrd Mat Mat Mat Fac Hostile Shots Fired 190 | . 67 36 62 25 Missed 77 | . 21 16 33 7 Damage Taken 1327 | . 385 305 320 317 Core 509 | . 67 87 168 187 Absorbed by Shields . | . . . . . Ignored by Resistances 397 | . 125 88 92 92 Regen/Repaired (Parts) 17 | . . . . 17 Core Remaining (%) 80 | 100 73 78 69 . Volleys Fired 104 | . 44 51 5 4 Largest 2 | . 2 2 1 1 Hottest 50 | . 40 50 30 30 Shots Fired 159 | . 88 62 5 4 Gun 136 | . 88 48 . . Cannon . | . . . . . Launcher 23 | . . 14 5 4 Special . | . . . . . Kinetic 136 | . 88 48 . . Thermal . | . . . . . Explosive 23 | . . 14 5 4 Electromagnetic . | . . . . . Robot Hit Streak 18 | . 18 15 . . Robot Miss Streak 4 | . 2 3 1 4 Penetration Max . | . . . . . Secondary Targets 1 | . 1 . . . Max Gunslinging Chain 1 | . 1 . . . Shots Hit Robots 100 | . 61 36 . 3 Core Hits 75 | . 26 34 6 9 Critical Kills . | . . . . . Critical Parts Destroyed . | . . . . . Critical Strikes 2 | . . . . 2 Impale 2 | . . . . 2 Melee Attacks 3 | . . . . 3 Impact . | . . . . . Slashing . | . . . . . Piercing 3 | . . . . 3 Sneak Attacks . | . . . . . Combat Hostiles . | . . . . . Follow-up Attacks . | . . . . . Damage Inflicted 2952 | . 775 1454 246 477 Guns 1101 | . 772 329 . . Cannons . | . . . . . Explosions 1725 | . . 1125 246 354 Melee 123 | . . . . 123 Ramming 3 | . 3 . . . Kinetic 1101 | . 772 329 . . Thermal 212 | . . 212 . . Explosive 1513 | . . 913 246 354 Electromagnetic . | . . . . . Impact . | . . . . . Slashing . | . . . . . Piercing 123 | . . . . 123 Highest Corruption 1 | . . . . 1 Average Corruption 1 | . . . . 1 Corruption Purged . | . . . . . Corruption Blocked . | . . . . . Overload Shots . | . . . . . Overflow Damage 220 | . . 105 15 100 Projectiles . | . . . . . Explosions 163 | . . 105 15 43 Melee 57 | . . . . 57 Knockbacks . | . . . . . Impact . | . . . . . Kinetic . | . . . . . Secondary . | . . . . . Self-Inflicted Damage 331 | . . 171 53 107 Shots 10 | . . 5 3 2 Rammed . | . . . . . Targets Rammed 1 | . 1 . . . Kicked 1 | . 1 . . . Crushed . | . . . . . Highest Temperature 30 | . 5 30 . . Average Temperature 5 | . 2 6 . . Received Heat Transfer 453 | . 237 27 99 90 Siege Activations . | . . . . . Robots Corrupted . | . . . . . Combat Hostiles . | . . . . . Parts Fried . | . . . . . Impact Corruptions . | . . . . . Robots Melted . | . . . . . Combat Hostiles . | . . . . . Parts Melted . | . . . . . Heat Transferred 150 | . . 150 . . Parts Sabotaged . | . . . . . Parts Stolen . | . . . . . Parts Stripped . | . . . . . Power Chain Reactions . | . . . . . Alert | -11 -10 -9 -8 -7 ------- Run | Yrd Mat Mat Mat Fac Peak Influence 461 | . 238 461 319 290 Initial 137 | . . 5 137 108 Average 136 | . 65 268 265 183 Maximum Alert Level 2 | . 1 2 1 1 Low Security (%) 70 | 100 91 32 29 58 Level 1 23 | . 8 41 70 41 Level 2 5 | . . 26 . . Level 3 . | . . . . . Level 4 . | . . . . . Level 5 . | . . . . . High Security . | . . . . . Max Security . | . . . . . Squads Dispatched 4 | . 1 . 1 2 Investigation 2 | . 1 . . 1 Extermination 1 | . . . . 1 Reinforcement 1 | . . . 1 . Assault . | . . . . . Garrison . | . . . . . Intercept . | . . . . . Searches Triggered . | . . . . . Construction Impeded . | . . . . . Haulers Reinforced . | . . . . . Active Scanning Responses . | . . . . . Cargo Convoy Interrupts . | . . . . . Stealth | -11 -10 -9 -8 -7 --------- Run | Yrd Mat Mat Mat Fac Distress Signals 4 | . 1 1 2 . Communications Jammed . | . . . . . Distress Signals . | . . . . . Times Spotted 76 | . 22 25 21 8 Peak Tracking Total 15 | . 5 7 15 4 Tactical Retreats 3 | . . 2 1 . Traps | -11 -10 -9 -8 -7 ------- Run | Yrd Mat Mat Mat Fac Traps Triggered 3 | . 1 . . 2 Indirectly . | . . . . . Trap Hack Attempts . | . . . . . Triggered . | . . . . . Disarmed . | . . . . . Reprogrammed . | . . . . . Reused . | . . . . . Traps Extracted . | . . . . . Installed . | . . . . . Triggered . | . . . . . Machines | -11 -10 -9 -8 -7 ---------- Run | Yrd Mat Mat Mat Fac Machines Disabled 12 | . . 8 . 4 Max in Single Turn 4 | . . 3 . 4 Machines Repaired . | . . . . . Machines Dismantled . | . . . . . Machines Sabotaged . | . . . . . Overloaded Fab Kills . | . . . . . Hacking | -11 -10 -9 -8 -7 --------- Run | Yrd Mat Mat Mat Fac Machines Accessed 11 | . 4 4 . 3 Terminals 7 | . 4 3 . . Fabricators 2 | . . . . 2 Repair Stations 1 | . . . . 1 Recycling Units 1 | . . 1 . . Scanalyzers . | . . . . . Garrison Access . | . . . . . Total Hacks 22 | . 8 8 . 6 Successful 16 | . 5 6 . 5 Failed 6 | . 3 2 . 1 Catastrophic 1 | . . 1 . . Database Lockouts . | . . . . . Manual 10 | . 6 4 . . Terminals 14 | . 8 6 . . Fabricators 2 | . . . . 2 Repair Stations 4 | . . . . 4 Recycling Units 2 | . . 2 . . Scanalyzers . | . . . . . Garrison Access . | . . . . . Terminal Hacks 9 | . 5 4 . . Record 1 | . 1 . . . Branch Access Points 2 | . 1 1 . . Terminal Index 2 | . 1 1 . . Unreport Threat 1 | . . 1 . . Transport Status 1 | . 1 . . . Hauler Manifests 1 | . 1 . . . Zone Layout 1 | . . 1 . . Fabricator Hacks 2 | . . . . 2 Network Status 2 | . . . . 2 Repair Station Hacks 3 | . . . . 3 Scan Component 2 | . . . . 2 Repair 1 | . . . . 1 Recycling Unit Hacks 2 | . . 2 . . Report Inventory 1 | . . 1 . . Retrieve Components 1 | . . 1 . . Scanalyzer . | . . . . . Garrison Access Hacks . | . . . . . Unauthorized Hacks . | . . . . . Terminals . | . . . . . Fabricators . | . . . . . Repair Stations . | . . . . . Recycling Units . | . . . . . Scanalyzers . | . . . . . Garrison Access . | . . . . . Data Cores Recovered . | . . . . . Used . | . . . . . Hacking Detections 7 | . 3 3 . 1 Full Trace Events 1 | . . . . 1 Feedback Events . | . . . . . Feedback Blocked . | . . . . . Robot Schematics Acquired . | . . . . . Robots Built . | . . . . . Authchips . | . . . . . Time . | . . . . . Total Robot Build Rating . | . . . . . Part Schematics Acquired . | . . . . . Parts Built . | . . . . . Authchips . | . . . . . Time . | . . . . . Total Part Build Rating . | . . . . . Parts Repaired 1 | . . . . 1 Time 19 | . . . . 19 Parts Recycled . | . . . . . Recycled Matter . | . . . . . Retrieved Matter . | . . . . . Retrieved Components 1 | . . 1 . . Parts Scanalyzed . | . . . . . Part Schematics Acquired . | . . . . . Parts Damaged . | . . . . . Bothacking | -11 -10 -9 -8 -7 ------------ Run | Yrd Mat Mat Mat Fac Used RIF Installer . | . . . . . Robots Hacked . | . . . . . Non-combat . | . . . . . Combat . | . . . . . Robot Hacks Applied . | . . . . . Relay Couplers Released . | . . . . . Fabnet Peak Effective % . | . . . . . Robots Rewired . | . . . . . Allies Hacked . | . . . . . Hacks Repelled . | . . . . . Allies | -11 -10 -9 -8 -7 -------- Run | Yrd Mat Mat Mat Fac Total Allies . | . . . . . Largest Group . | . . . . . Highest-Rated Group . | . . . . . Highest-Rated Ally . | . . . . . Total Orders . | . . . . . Ally Attacks . | . . . . . Total Damage . | . . . . . Kills . | . . . . . Allies Corrupted . | . . . . . Allies Melted . | . . . . . Intel | -11 -10 -9 -8 -7 ------- Run | Yrd Mat Mat Mat Fac Robot Analysis Total . | . . . . . Derelict Logs Recovered . | . . . . . Drone Launches . | . . . . . Drone Recoveries . | . . . . . Exploration | -11 -10 -9 -8 -7 ------------- Run | Yrd Mat Mat Mat Fac Turns Passed 2517 | 9 1452 532 109 415 Spaces Moved 2771 | 8 1052 845 223 643 Core 153 | . . . . 153 Treads . | . . . . . Legs 1150 | 8 1052 90 . . Wheels . | . . . . . Hover . | . . . . . Flight 1468 | . . 755 223 490 Fastest Speed 37 | 120 120 37 37 37 Average Speed 75 | 120 120 45 37 54 Slowest Speed 190 | 120 190 120 40 150 Overloaded Moves . | . . . . . Propulsion Burnouts . | . . . . . Robots Hopped 10 | . . 1 8 1 Cave-ins Triggered . | . . . . . Exploration Rate (%) 39 | 3 98 60 27 10 Regions Visited 4 Branch Regions . Pre-discovered Areas . | . . . . . Known Exits Taken 2 | . . 1 1 . Unknown Exits Taken 2 | 1 1 . . . Scrap Searched . | . . . . . Spaces Dug 27 | . . . 27 . Terrain Destroyed 218 | . . 136 44 38 Melee . | . . . . . Projectile . | . . . . . AOE 218 | . . 136 44 38 Terrain Rammed . | . . . . . Walls Destroyed . | . . . . . Machines Disabled . | . . . . . Actions | -11 -10 -9 -8 -7 --------- Run | Yrd Mat Mat Mat Fac Total 3030 | 7 1156 936 235 696 Wait 81 | . 36 9 10 26 Move 2751 | 7 1051 842 210 641 Hop 6 | . . 1 4 1 Pick Up 22 | . 8 7 1 6 Fast Attach 14 | . 3 7 1 3 Attach 10 | . . 3 2 5 Detach 1 | . . . . 1 Swap 11 | . 3 4 . 4 Drop 26 | . 10 12 2 2 Fire 104 | . 44 51 5 4 Melee 3 | . . . . 3 Ram . | . . . . . Kick 1 | . 1 . . . Crush . | . . . . . Escape Stasis . | . . . . . Rewire . | . . . . . Trap . | . . . . . Miscellaneous . | . . . . . Route ------- -11/Scrapyard -10/Materials (discovered 4 exits: *Mat x3 / *Min) -9/Materials (discovered 3 exits: *Mat / *Min x2) -8/Materials (discovered 2 exits: *Fac / [*Sto]) -7/Factory History --------- Turn | Location | Event 1 | -11/Scrapyard | Discovered new exit (range 3) 10 | -11/Scrapyard | Entered Materials 332 | -10/Materials | Build established: Mutant 584 | -10/Materials | Discovered new exit (range 15) 731 | -10/Materials | Identified exit to Mines 1083 | -10/Materials | Discovered new exit (range 5) 1329 | -10/Materials | Discovered new exit (range 15) 1462 | -10/Materials | Entered another Materials area 1462 | -9/Materials | Evolved 2 slots: Utility x2 1540 | -9/Materials | Identified exit to Mines 1963 | -9/Materials | Discovered new exit (range 10) 1993 | -9/Materials | Identified exit to Materials 1994 | -9/Materials | Entered another Materials area 1994 | -8/Materials | Evolved 2 slots: Utility x2 2012 | -8/Materials | Discovered new exit (range 10) 2098 | -8/Materials | Discovered new exit (range 6) 2103 | -8/Materials | Identified exit to Factory 2103 | -8/Materials | Entered Factory 2103 | -7/Factory | Evolved 2 slots: Utility x2 2130 | -7/Factory | Lost 4 parts (1p1n1u1w) 2243 | -7/Factory | Repaired Adv. Weight Redist. System 2290 | -7/Factory | Build established: Hacker-Mutant 2518 | -7/Factory | Self-destructed Last Messages --------------- 02358_ U-05 Engineer lays Concrete. 02359_ Acquired Flight Unit. 02359_ U-05 Engineer lays Concrete. 02361_ Acquired Lgt. Ion Engine. 02361_ U-05 Engineer builds a Wall. 02364_ Dropped VTOL Module. 02364_ Acquired Imp. Flight Unit. 02365_ U-05 Engineer lays Concrete. 02368_ U-05 Engineer builds a Wall. 02372_ U-05 Engineer lays Concrete. 02421_ Connecting with Repair Station... >>Scan(VTOL Module) Scanning VTOL Module... Ready to Repair: VTOL Module Rating: 2 Time: 16 02421_ ALERT: Suspicious activity at Repair Station F006. Dispatching Investigation squad. 02515_ Critical hit (Burn: +37). Map ----- +----------------------------------------------------+ | #?##############????########???????????????? | | #?# """"" #????# #???????????????? | | #?# """"" """ #????# """ #???????????????? | | ### """ ""R" ###### """ ##############??? | | + + "" " + + """ + #??? | | # # #### # # #??? | | # #######+###+##??# ######## #??? | | # #???# #???# #??? | | ####### #???#[!/ #???# #??? | | ??????# #???#[ ##### #??? | | ??????# #???# + #??? | | ??????# #???# # #??? | | ??????# ##### # #??? | | ??????# # # #########??? | | ??????# # # ### T###### #??????????? | | ??????# + # ###########+##?????????? | | ??????# # # # #?????????? | | ####### # + # !![ #?????????? | | # #= # # ! [ #?????????? | | # # # # ![[ #?????????? | | """" # # # # #?????????? | | """" # # # # #?????????? | | """" # # # + #?????????? | | """" + # # # """"""" #?????????? | | # ####+#### # """"""" #?????????? | | # #??# #??# @# """"""" #?????????? | | ####### #### #### # """"""" #?????????? | | ??????# g # #?????????? | | ??????# g ##############?????????? | | ??????# #???????????????????? | | ####### p #???????????????????? | | ^ m #???????????????????? | | #???????????????????? | | ^ #???????????????????? | | """"""""" """"""""" #???????????????????? | | #???????????????????? | | """"""""" """"""""" ##+###########?????????? | | # #?????????? | | # """"" #?????????? | | ## #####+##### # """"" #?????????? | | ?# # # # """ #?????????? | | ?# # # """ """ # #?????????? | | ?# # # """ """ # """"" #?????????? | | ?# # # """ """ + """"" #?????????? | | ?# # # # """ #?????????? | | ?# # # # #?????????? | | ## # ######## # #?????????? | | # #??????# # #?????????? | | #### #??????# # #?????????? | | ???# #??????# ##############?????????? | +----------------------------------------------------+ Best States ------------- Heat Dissipation 34 Energy Generation 10 Energy Capacity 125 Matter Stores 300 Matter Capacity 300 Sight Range 16 Robot Scan Range 14 Terrain Scan Range 14 Terrain Scan Density 10 Additional Mass Support 9 Resistance: KI 20 Resistance: TH 20 Resistance: EX 20 Resistance: EM 20 Resistance: I 20 Resistance: S 20 Resistance: P 20 Evasion (%) 62 Melee Accuracy 6 Offensive Hacking 30 Item Schematics ----------------- None Robot Schematics ------------------ None Fabricated ------------ Nothing Alien Tech Used ----------------- None Achievements -------------- None Challenges ------------ None Game ------ Seed BombSmartbombSpear Manual? 0 Play Time 00:28:49 Cumulative 41.4 hours Start 2024.05.23 @ 08:54:59 End 2024.05.23 @ 09:23:02 Sessions 1 Manual Loads 0 Difficulty Adventurer Special Mode None Game No. 52 Rogue 0 Adventurer 47 Explorer 5 Win Type - Total 1 Types 1/0/0/0/0/0/0/0/0 Lore% 25 Gallery% 41 Achievement% 32 Wizard Run 0 Options --------- Layout 1 ASCII 0 Keyboard 0 Movement Arrows Keybinds 0 Fullscreen 2 Font 24/Terminus Map View 50x35 Zoom Use 0% Tactical HUD 1 Map Filters NONE Filters NONE Steam 1 RUN: 40972557-13f7-4b44-91bd-04dc1404c60b